[Event "German Bundesliga 2021-22"]
[Site "Germany"]
[Date "2022.04.09"]
[Round "3.10"]
[White "Piorun, Kacper"]
[Black "Papp, Gabor"]
[Result "1-0"]
[ECO "A46"]
[WhiteElo "2641"]
[BlackElo "2576"]
[Annotator "TA"]
[PlyCount "55"]
[EventDate "2022.03.05"]
[EventType "team-tourn"]
[EventCountry "GER"]
[SourceTitle "playchess.com"]
[Source "ChessBase"]
[SourceQuality "1"]
[TimeControl "40/5400+30:1800+30"]

{[%evp 16,55,0,0,0,0,0,0,18,13,51,44,26,43,34,26,33,44,73,45,105,35,112,83,178,226,245,186,188,164,385,400,444,460,477,473,470,452,451,448,29988,29989]} 1. d4 {[%emt 0:02:14]} Nf6 {[%emt 0:00:00]} 2. Nf3 {[%emt 0:00:05]} e6 {[%emt 0:00:00]} 3. e3 {[%emt 0:00:32]} b6 {[%emt 0:00:00]} 4. Bd3 {[%emt 0:00:16]} Bb7 {[%emt 0:00:00]} 5. O-O {[%emt 0:00:20]} d5 {[%emt 0:00:00]} 6. b3 {[%emt 0:00:09]} Bd6 {[%emt 0:00:00]} 7. Bb2 {[%emt 0:00:08]} O-O {[%emt 0:00:00]} 8. Qe2 {[%emt 0:00:16]} c5 {[%emt 0:00:00]} 9. Nbd2 {[%emt 0:02:31]} Nc6 {[%emt 0:10:05] D05: Colle System with ...e6.} 10. a3 {[%emt 0:00:07] Against Nb4} Rc8 {[%emt 0:04:42]} 11. Rfd1 {[%emt 0:06:06]} Qc7 {[%emt 0:17:49] The position is equal.} 12. dxc5 {[%emt 0:03:35] [#]} Bxc5 $146 {[%emt 0:00:10]} ({Predecessor:} 12... bxc5 13. e4 Ne5 14. Nxe5 Bxe5 15. Bxe5 Qxe5 16. Nf3 Qh5 17. e5 Ne4 18. Re1 Nc3 {0-1 (62) Grebeniuk,S (2254)-Sebenik,M (2546) Chess.com INT 2017}) 13. c4 {[%emt 0:06:11]} Be7 {[%emt 0:05:48]} 14. Rac1 {[%emt 0:04:30]} Qb8 {[%emt 0:03:15]} 15. cxd5 {[%emt 0:08:52]} Nxd5 {[%emt 0:03:14]} 16. Ne4 {[%emt 0:00:18]} h6 {[%emt 0:02:58] Prevents Nfg5.} 17. b4 {[%emt 0:06:18]} Rfd8 {[%emt 0:04:39] [#]} ({Black should try} 17... Nf6 $14) 18. Bb1 {[%emt 0:15:27]} (18. b5 $1 $16 {[%cal Rb5c6]} Na5 19. Ne5) 18... Bf8 {[%emt 0:09:54]} (18... f5 19. Ng3 $16) (18... Nf6 $14) 19. Ng3 {[%emt 0:20:53] &Bianco is more active.} Nde7 {[%emt 0:12:35]} (19... Nf6 $16 {was worth a try.}) 20. h4 $18 {[%emt 0:09:10][%cal Bh2h4,Bh4h5][%mdl 32]} (20. Qc2 $6 Ng6 $14) 20... Rxd1+ {[%emt 0:09:46]} 21. Rxd1 {[%emt 0:00:14] Hoping for Qd3.} ({Much less strong is} 21. Qxd1 $6 Nd8 22. Rxc8 Qxc8 $16) 21... Rd8 {[%emt 0:00:06] [#]} 22. Rc1 $1 $40 {[%emt 0:00:25][%mdl 128] Strongly threatening Qc2. White wants a kill.} Nd5 $2 {[%emt 0:01:41]} (22... Qd6 {was necessary.} 23. Qc2 f5) 23. Qc2 {[%emt 0:03:52][%csl Gb1][%cal Rc2h7]} g6 {[%emt 0:00:27]} 24. h5 {[%emt 0:00:35]} Nce7 {[%emt 0:00:47]} 25. e4 {[%emt 0:01:34]} Rc8 {[%emt 0:00:31]} 26. Qd2 {[%emt 0:00:37] Black must now prevent Rxc8.} Rxc1+ {[%emt 0:01:46]} 27. Qxc1 {[%emt 0:00:06]} Nc7 {[%emt 0:01:15]} (27... Qc7 $18 28. Qd2 Qf4) 28. Qc3 {[%emt 0:00:07] Weighted Error Value: White=0.08 (flawless) /Black=0.76} 1-0

[Event "German Bundesliga 2021-22"]
[Site "Germany"]
[Date "2022.04.09"]
[Round "3.10"]
[White "Bartel, Mateusz"]
[Black "Fridman, Daniel"]
[Result "1/2-1/2"]
[ECO "B12"]
[WhiteElo "2616"]
[BlackElo "2626"]
[Annotator "RC"]
[PlyCount "95"]
[EventDate "2022.03.05"]
[EventType "team-tourn"]
[EventCountry "GER"]
[SourceTitle "playchess.com"]
[Source "ChessBase"]
[SourceQuality "1"]
[TimeControl "40/5400+30:1800+30"]

1. e4 {[%emt 0:00:00]} c6 {[%emt 0:00:00]} 2. d4 {[%emt 0:00:00]} d5 {[%emt 0:00:00]} 3. e5 {[%emt 0:00:00]} c5 {[%emt 0:00:00]} 4. dxc5 {[%emt 0:00:00]} e6 {[%emt 0:00:00]} 5. Bd3 {[%emt 0:00:00]} Nc6 {[%emt 0:00:00]} 6. Nf3 {[%emt 0:00:00]} Bxc5 {[%emt 0:00:00]} 7. a3 {[%emt 0:00:00]} f6 {[%emt 0:00:00]} 8. b4 {[%emt 0:00:00]} Be7 {[%emt 0:00:00]} 9. Bb2 {[%emt 0:00:00]} Nh6 {[%emt 0:00:00]} 10. O-O {[%emt 0:00:00]} Nf7 {[%emt 0:14:15]} 11. exf6 {[%emt 0:04:07]} Bxf6 {[%emt 0:00:12]} 12. Bxf6 {[%emt 0:00:08]} Qxf6 {[%emt 0:00:04]} 13. Nbd2 {[%emt 0:00:08]} O-O {[%emt 0:11:53]} 14. c4 {[%emt 0:00:14]} Nce5 {[%emt 0:06:17]} 15. Be2 {[%emt 0:10:10]} Rd8 {[%emt 0:00:23]} 16. Qb3 {[%emt 0:02:55]} b6 {[%emt 0:03:38]} 17. cxd5 {[%emt 0:07:59]} exd5 {[%emt 0:00:08]} 18. Rac1 {[%emt 0:00:05]} Ng6 {[%emt 0:07:56]} 19. Rfe1 {[%emt 0:03:06]} Nf4 {[%emt 0:01:56]} 20. Bf1 {[%emt 0:00:02]} Bg4 {[%emt 0:06:50]} 21. Rc7 {[%emt 0:14:54]} Rf8 {[%emt 0:05:02]} 22. Qe3 {[%emt 0:09:52]} Qd6 {[%emt 0:18:24]} 23. Qe7 {[%emt 0:03:06]} Qxe7 {[%emt 0:02:59]} 24. Rexe7 {[%emt 0:01:02]} Ng6 {[%emt 0:00:08]} 25. Re1 {[%emt 0:01:42]} Rfc8 {[%emt 0:00:32]} 26. Rxc8+ {[%emt 0:05:20]} Rxc8 {[%emt 0:00:52]} 27. Ba6 {[%emt 0:00:02]} Rc3 {[%emt 0:02:43]} 28. Re8+ {[%emt 0:00:49]} Nf8 {[%emt 0:00:00]} 29. h3 {[%emt 0:00:09]} Bd7 {[%emt 0:04:52]} 30. Ra8 {[%emt 0:01:50]} Rxa3 {[%emt 0:01:34]} 31. Bb7 {[%emt 0:00:04]} g6 {[%emt 0:01:01]} 32. Bxd5 {[%emt 0:00:55]} Kg7 {[%emt 0:00:07]} 33. Nc4 {[%emt 0:02:14]} Ra4 {[%emt 0:00:55]} 34. Bxf7 {[%emt 0:18:27]} Kxf7 {[%emt 0:00:08]} 35. b5 {[%emt 0:00:02]} Kg7 {[%emt 0:08:09]} 36. Nxb6 {[%emt 0:00:48]} Ra1+ {[%emt 0:00:05]} 37. Kh2 {[%emt 0:00:00]} Bxb5 {[%emt 0:00:21]} 38. Nd4 {[%emt 0:00:24]} Bd7 {[%emt 0:01:55]} 39. Nxd7 {[%emt 0:02:51]} Nxd7 {[%emt 0:00:06]} 40. Nc6 {[%emt 0:00:03]} Ra6 {[%emt 0:01:58]} 41. Rxa7 {[%emt 0:30:14]} Rxc6 {[%emt 0:30:05]} 42. Rxd7+ {[%emt 0:00:03]} Kg8 {[%emt 0:00:09]} 43. g4 {[%emt 0:00:04]} Rc5 {[%emt 0:01:14]} 44. Kg3 {[%emt 0:00:37]} h5 {[%emt 0:02:38]} 45. Kh4 {[%emt 0:00:03]} hxg4 {[%emt 0:00:36]} 46. hxg4 {[%emt 0:00:02]} Ra5 {[%emt 0:02:19]} 47. f4 {[%emt 0:00:03]} Kf8 {[%emt 0:00:39]} 48. Rb7 {[%emt 0:03:15]} 1/2-1/2

[Event "German Bundesliga 2021-22"]
[Site "Germany"]
[Date "2022.04.09"]
[Round "3.10"]
[White "Santos Ruiz, Miguel"]
[Black "Kryvoruchko, Yuriy"]
[Result "1/2-1/2"]
[ECO "C67"]
[WhiteElo "2596"]
[BlackElo "2683"]
[Annotator "TA"]
[PlyCount "43"]
[EventDate "2022.03.05"]
[EventType "team-tourn"]
[EventCountry "GER"]
[SourceTitle "playchess.com"]
[Source "ChessBase"]
[SourceQuality "1"]
[TimeControl "40/5400+30:1800+30"]

{[%evp 18,43,22,15,18,22,16,13,17,20,23,24,21,14,24,17,18,10,15,9,13,0,6,3,11,17,14,0]} 1. e4 {[%emt 0:00:00]} e5 {[%emt 0:00:00]} 2. Nf3 {[%emt 0:00:00]} Nc6 {[%emt 0:00:00]} 3. Bb5 {[%emt 0:00:00]} Nf6 {[%emt 0:00:00]} 4. O-O {[%emt 0:00:00][%cal Bh1f1,Bf1e1,Be1e5][%mdl 32]} Nxe4 {[%emt 0:00:00]} 5. Re1 {[%emt 0:00:00]} Nd6 {[%emt 0:00:00]} 6. Nxe5 {[%emt 0:00:00]} Be7 {[%emt 0:00:00]} 7. Bf1 {[%emt 0:00:00]} Nxe5 {[%emt 0:00:00]} 8. Rxe5 {[%emt 0:00:00]} O-O {[%emt 0:00:00]} 9. d4 {[%emt 0:00:00]} Bf6 {[%emt 0:00:00]} 10. Re1 {[%emt 0:00:00]} Re8 {[%emt 0:00:00] C67: Ruy Lopez: Berlin Defence: 4 0-0 Nxe4.} 11. Bf4 {[%emt 0:00:00]} Rxe1 {[%emt 0:00:00]} 12. Qxe1 {[%emt 0:00:00]} Ne8 {[%emt 0:00:00]} 13. c3 {[%emt 0:00:00]} d5 {[%emt 0:00:00]} 14. Nd2 {[%emt 0:00:00]} g6 {[%emt 0:00:00]} 15. Nf3 {[%emt 0:00:00]} Ng7 {[%emt 0:02:24]} 16. Qd2 {[%emt 0:00:00]} c6 {[%emt 0:15:23] The position is equal.} 17. Re1 {[%emt 0:03:05]} Bf5 {[%emt 0:02:26] [#]} 18. Bh6 $5 $146 {[%emt 0:09:52][%mdl 8] New and interesting.} ({Predecessor:} 18. Bg5 Ne6 19. Bxf6 Qxf6 20. Ne5 Re8 21. Bd3 Bxd3 22. Nxd3 Qd8 23. h3 Ng7 24. Rxe8+ Qxe8 {0-1 (48) Li,H (1985)-Slade,T (2057) Chess.com INT 2020}) 18... Qd6 {[%emt 0:17:15]} 19. Bf4 {[%emt 0:10:03]} Qf8 {[%emt 0:02:56]} 20. h3 {[%emt 0:00:37]} Re8 {[%emt 0:00:41]} 21. Ne5 {[%emt 0:03:34]} Bd8 {[%emt 0:05:31]} 22. Nd3 {[%emt 0:25:01] Not much happened in this game.  Weighted Error Value: White=0.03 (flawless) /Black=0.02 (flawless)} 1/2-1/2

[Event "German Bundesliga 2021-22"]
[Site "Germany"]
[Date "2022.04.09"]
[Round "3.10"]
[White "Levin, Felix"]
[Black "Bluebaum, Matthias"]
[Result "0-1"]
[ECO "A06"]
[WhiteElo "2456"]
[BlackElo "2642"]
[Annotator "TA"]
[PlyCount "78"]
[EventDate "2022.03.05"]
[EventType "team-tourn"]
[EventCountry "GER"]
[SourceTitle "playchess.com"]
[Source "ChessBase"]
[SourceQuality "1"]
[TimeControl "40/5400+30:1800+30"]

{[%evp 9,78,0,0,0,0,5,0,0,11,5,13,8,13,0,0,0,0,-8,-7,0,0,0,0,0,0,-34,-31,-36,0,-43,-40,-52,-41,-71,-28,-56,-50,-113,-125,-127,-110,-145,-145,-146,-152,-139,-139,-224,-243,-297,-243,-226,-226,-312,-307,-403,-391,-431,-427,-444,-402,-435,-301,-304,-312,-289,-254,-260,-258,-344,-307]} 1. Nf3 {[%emt 0:00:00]} d5 {[%emt 0:00:00]} 2. g3 {[%emt 0:00:00]} b6 {[%emt 0:00:00]} 3. Bg2 {[%emt 0:00:00]} Bb7 {[%emt 0:00:00]} 4. c4 {[%emt 0:02:12]} dxc4 {[%emt 0:00:00]} 5. Qa4+ {[%emt 0:00:48]} Nd7 {[%emt 0:00:00]} 6. Qxc4 {[%emt 0:00:18] [#] Hoping for Ng5. A07: Réti Opening: New York and Capablanca Systems.} e6 {[%emt 0:01:48]} 7. O-O {[%emt 0:05:20]} Ngf6 {[%emt 0:03:39]} 8. b3 {[%emt 0:00:28] [#] The position is equal.} Bd6 $146 {[%emt 0:06:35]} ({Predecessor:} 8... c5 9. Bb2 Be7 10. d3 O-O 11. Nbd2 Rc8 12. Rac1 Qc7 13. Qc2 Rfd8 14. Rfd1 b5 15. Qb1 Qb8 16. Qa1 a6 17. Rc2 {½-½ (53) Soham,D (2336)-Lerch,J (2233) Rosenheim 2022}) 9. Bb2 {[%emt 0:01:21]} O-O {[%emt 0:00:19]} 10. d3 {[%emt 0:05:34]} a6 {[%emt 0:03:46]} 11. Nbd2 {[%emt 0:02:10]} b5 {[%emt 0:00:51]} 12. Qc2 {[%emt 0:00:11]} c5 {[%emt 0:01:24]} 13. Rac1 {[%emt 0:06:59]} Qb6 {[%emt 0:03:59]} 14. Qb1 {[%emt 0:01:38]} Rac8 {[%emt 0:02:56]} 15. Qa1 {[%emt 0:07:43]} Rfe8 {[%emt 0:02:47]} 16. Rc2 {[%emt 0:09:36]} e5 {[%emt 0:02:18]} 17. Nh4 {[%emt 0:11:21]} Bxg2 {[%emt 0:04:02]} 18. Nxg2 {[%emt 0:00:06]} Nb8 {[%emt 0:03:21]} 19. e4 {[%emt 0:13:01]} Nc6 {[%emt 0:02:40]} 20. Nf3 {[%emt 0:02:02]} Rcd8 {[%emt 0:07:13][%cal Oc5c4]} 21. Rfc1 {[%emt 0:05:00]} Qb8 {[%emt 0:06:48] &Nero is more active.} 22. Ba3 {[%emt 0:07:50]} Nd7 {[%emt 0:02:55][%cal Bf6d7,Bd7e5,Be5d3][%mdl 32]} 23. Ne3 {[%emt 0:01:02] Black continues to play with concentration.} ({White should play} 23. Rd1 $15) 23... Nd4 $17 {[%emt 0:05:02]} 24. Nxd4 {[%emt 0:00:19]} exd4 {[%emt 0:00:01]} 25. Nf5 {[%emt 0:01:55]} b4 {[%emt 0:01:09]} 26. Bb2 {[%emt 0:01:28]} Ne5 {[%emt 0:05:14]} 27. Rd1 {[%emt 0:06:36]} Qb5 {[%emt 0:01:48]} 28. Qc1 {[%emt 0:07:24]} (28. f4 $17 Nxd3 29. e5) 28... Bf8 $19 {[%emt 0:04:46]} ({Not} 28... Nxd3 29. Qg5 Be5 30. Ne7+ Kh8 31. Nd5 $17) 29. Kg2 {[%emt 0:02:00]} Nxd3 {[%emt 0:02:26]} 30. Qg5 {[%emt 0:00:08] [#] Black must now prevent Nh6+.} Ne5 {[%emt 0:00:01]} 31. h4 {[%emt 0:00:57]} Qc6 {[%emt 0:02:58]} 32. Re2 {[%emt 0:00:05]} f6 {[%emt 0:03:46]} 33. Qc1 {[%emt 0:00:04]} g6 {[%emt 0:01:42]} 34. Nh6+ {[%emt 0:00:28]} Bxh6 {[%emt 0:00:42]} 35. Qxh6 {[%emt 0:00:02]} Nf7 {[%emt 0:00:21]} 36. Qf4 {[%emt 0:00:22] Black has a decisive advantage.} f5 {[%emt 0:00:01]} 37. f3 {[%emt 0:00:36]} fxe4 {[%emt 0:00:06]} 38. Rxe4 {[%emt 0:00:46]} Rxe4 {[%emt 0:00:48]} 39. fxe4 {[%emt 0:00:21]} Re8 {[%emt 0:00:26] Weighted Error Value: White=0.24 (precise) /Black=0.10 (very precise)} 0-1

[Event "German Bundesliga 2021-22"]
[Site "Germany"]
[Date "2022.04.09"]
[Round "3.11"]
[White "Anton Guijarro, David"]
[Black "Bogner, Sebastian"]
[Result "1-0"]
[ECO "C42"]
[WhiteElo "2691"]
[BlackElo "2573"]
[Annotator "TA"]
[PlyCount "105"]
[EventDate "2022.03.05"]
[EventType "team-tourn"]
[EventCountry "GER"]
[SourceTitle "playchess.com"]
[Source "ChessBase"]
[SourceQuality "1"]
[TimeControl "40/5400+30:1800+30"]

{[%evp 32,105,0,0,0,0,0,0,0,0,43,22,18,29,54,50,54,54,52,56,72,72,73,66,66,74,71,71,71,71,71,67,98,100,94,79,136,138,218,218,218,218,362,343,517,526,499,305,614,0,463,0,309,306,419,242,233,217,215,215,212,212,212,215,472,458,558,463,856,770,795,626,619,618,1394,1059]} 1. e4 {[%emt 0:00:00]} e5 {[%emt 0:00:00]} 2. Nf3 {[%emt 0:00:00]} Nf6 {[%emt 0:00:00]} 3. Nxe5 {[%emt 0:00:00]} d6 {[%emt 0:00:00]} 4. Nf3 {[%emt 0:00:00]} Nxe4 {[%emt 0:00:00]} 5. d4 {[%emt 0:00:00]} d5 {[%emt 0:00:00]} 6. Bd3 {[%emt 0:00:00]} Bd6 {[%emt 0:00:00]} 7. O-O {[%emt 0:00:00]} O-O {[%emt 0:00:00]} 8. c4 {[%emt 0:00:00]} c6 {[%emt 0:00:00]} 9. cxd5 {[%emt 0:00:00]} cxd5 {[%emt 0:00:00]} 10. Nc3 {[%emt 0:00:00]} Nxc3 {[%emt 0:03:40]} 11. bxc3 {[%emt 0:00:00]} Bg4 {[%emt 0:13:27]} 12. Rb1 {[%emt 0:00:19]} Nd7 {[%emt 0:00:07]} 13. h3 {[%emt 0:00:32]} Bh5 {[%emt 0:05:48]} 14. Rb5 {[%emt 0:00:19]} Nb6 {[%emt 0:05:22]} 15. c4 {[%emt 0:00:25]} Bxf3 {[%emt 0:13:09]} 16. Qxf3 {[%emt 0:00:17]} dxc4 {[%emt 0:00:51]} 17. Be4 {[%emt 0:01:20]} Qd7 {[%emt 0:06:43] C42: Petroff Defence: 3 Nxe5 and unusual White 3rd moves.} 18. Ra5 $5 {[%emt 0:03:00][%mdl 4] A promising side line.} Bb4 {[%emt 0:05:13][%csl LRa5,LRd4]} 19. Rh5 {[%emt 0:02:53]} g6 {[%emt 0:00:20] The position is equal.} 20. a3 {[%emt 0:01:14][%cal Oa3b4] [#]} Be7 $146 {[%emt 0:08:18]} ({Predecessor:} 20... gxh5 21. Bxh7+ Kxh7 22. Qxh5+ Kg8 {½-½ (22) Dressel,R (2209)-Haas,B (2034) ICCF email 2006}) 21. Ra5 {[%emt 0:09:23][%cal Bh5a5,Ba5a7,Ba7a6,Ba6c6][%mdl 32]} Qxd4 {[%emt 0:14:52]} 22. Bxb7 {[%emt 0:13:04]} Rab8 {[%emt 0:00:09]} 23. Be3 {[%emt 0:16:44]} Qf6 {[%emt 0:08:20]} 24. Rxa7 {[%emt 0:02:09] Black must now prevent Qxf6.} Nc8 {[%emt 0:08:34]} 25. Ra6 {[%emt 0:02:27]} Qb2 {[%emt 0:02:06]} 26. Bd5 {[%emt 0:07:26] This bishop pair is nice.} Qb5 {[%emt 0:03:52]} 27. Rc6 {[%emt 0:06:19] And now Qe4 would win. 0x0.00261840b71ddp-1022s more active pieces.} Nb6 {[%emt 0:01:29]} 28. Bxb6 {[%emt 0:07:12]} Rxb6 {[%emt 0:00:02]} 29. a4 {[%emt 0:00:39]} Qa5 {[%emt 0:01:03]} 30. Rxb6 {[%emt 0:00:56]} Qxb6 {[%emt 0:00:01]} 31. Bxc4 {[%emt 0:03:15]} Qb4 {[%emt 0:00:20]} 32. Bb3 {[%emt 0:02:21]} Kg7 {[%emt 0:00:18]} 33. Rd1 {[%emt 0:02:11]} Bf6 {[%emt 0:01:47]} ({Black should try} 33... f5) 34. Rd7 $1 $16 {[%emt 0:03:52]} h5 {[%emt 0:00:23] [#]} (34... Qc3 $16 35. Qxc3 Bxc3) 35. g3 $1 $18 {[%emt 0:01:09][%cal Bg2g3,Bg3g4][%mdl 32]} h4 {[%emt 0:00:54] [#]} 36. g4 {[%emt 0:01:00]} Qe1+ {[%emt 0:00:48]} (36... Be5 $142 37. g5 (37. Rxf7+ Rxf7 38. Qxf7+ Kh6 $18) 37... Kh8) 37. Kg2 {[%emt 0:00:20][%cal Og4g5] Threatens to win with g5!} Qb4 {[%emt 0:00:31]} (37... Qa5 {was worth a try.} 38. Qb7 (38. Rd6 Be5 $18) 38... Kh6 39. Rxf7 Rxf7 40. Qxf7 Ba1) 38. Qd5 {[%emt 0:03:54][%cal Rd7f7]} Kh6 {[%emt 0:00:29]} 39. Bc2 {[%emt 0:07:18]} Kg7 {[%emt 0:00:31]} (39... Bc3 40. g5+ (40. Rxf7 Rxf7 41. Qxf7 Qd6 $18) 40... Kg7) 40. Bb3 {[%emt 0:05:42][%cal Rd7f7]} Kh6 {[%emt 0:00:22]} 41. Qf3 {[%emt 0:00:00] Against Qf4} Kg7 $1 {[%emt 0:00:00]} 42. Rb7 {[%emt 0:03:06]} ({Don't take} 42. g5 Be7 43. Qd5 Qc5 44. Qxc5 Bxc5 $18) 42... Qd2 {[%emt 0:00:00]} 43. Qd5 {[%emt 0:01:32]} (43. Rb6 Qc3 44. a5 Qxf3+ 45. Kxf3 Bd8 $18) (43. Bd5 $142) 43... Qxd5+ {[%emt 0:00:25]} 44. Bxd5 {[%emt 0:00:05][%mdl 4096] Endgame KRB-KRB} Bc3 {[%emt 0:00:17]} 45. f4 {[%emt 0:02:22]} g5 {[%emt 0:01:42]} 46. fxg5 {[%emt 0:01:01]} Kg6 {[%emt 0:00:11]} 47. Kf3 {[%emt 0:01:11]} Bd2 $2 {[%emt 0:00:34]} (47... Kxg5 48. Rb5 f5) 48. Be4+ {[%emt 0:03:22] White is clearly winning.} Kxg5 {[%emt 0:01:22]} 49. Rb5+ {[%emt 0:00:37]} Kf6 {[%emt 0:00:43]} (49... f5 $142 50. a5 Bc3 51. Bxf5 (51. gxf5 Rf6 $18) 51... Kf6) 50. a5 {[%emt 0:00:33][%cal Ba4a5,Ba5a6][%mdl 32] a6 is the strong threat.} Rc8 {[%emt 0:00:04]} 51. a6 {[%emt 0:01:35]} Rc3+ {[%emt 0:00:48]} 52. Ke2 {[%emt 0:00:38]} Be3 {[%emt 0:00:02]} 53. Rf5+ {[%emt 0:00:16] Weighted Error Value: White=0.33/Black=0.39} 1-0

[Event "German Bundesliga 2021-22"]
[Site "Germany"]
[Date "2022.04.09"]
[Round "3.11"]
[White "Kollars, Dmitrij"]
[Black "Vaisser, Anatoly"]
[Result "1-0"]
[ECO "C18"]
[WhiteElo "2635"]
[BlackElo "2484"]
[Annotator "TA"]
[PlyCount "63"]
[EventDate "2022.03.05"]
[EventType "team-tourn"]
[EventCountry "GER"]
[SourceTitle "playchess.com"]
[Source "ChessBase"]
[SourceQuality "1"]
[TimeControl "40/5400+30:1800+30"]

{[%evp 16,63,32,32,37,41,67,39,39,45,43,43,42,25,27,18,27,25,36,0,0,0,0,0,0,0,124,106,111,110,406,390,385,373,556,562,639,622,855,837,830,763,800,754,721,651,1995,1928,1618,1547]} 1. e4 {[%emt 0:00:00]} e6 {[%emt 0:00:00]} 2. d4 {[%emt 0:00:00]} d5 {[%emt 0:00:00]} 3. Nc3 {[%emt 0:00:00]} Bb4 {[%emt 0:00:00]} 4. e5 {[%emt 0:00:00]} c5 {[%emt 0:00:00]} 5. a3 {[%emt 0:00:00]} Bxc3+ {[%emt 0:00:00]} 6. bxc3 {[%emt 0:00:00]} Nc6 {[%emt 0:00:00]} 7. Qg4 {[%emt 0:00:00]} g6 {[%emt 0:00:00]} 8. Nf3 {[%emt 0:01:46]} Qa5 {[%emt 0:00:00]} 9. Bd2 {[%emt 0:01:07]} Qa4 {[%emt 0:00:45] C18: French: 3 Nc3 Bb4: Main line: 7 h4 and 7 Qg4.} 10. Be2 {[%emt 0:05:41]} c4 {[%emt 0:07:16]} 11. h4 $5 {[%emt 0:07:05][%mdl 4] &Bianco is more active. A promising side line.} h6 {[%emt 0:00:40] White is slightly better.} 12. Ra2 {[%emt 0:10:00]} Bd7 {[%emt 0:12:12]} 13. Qf4 {[%emt 0:03:39]} Rh7 {[%emt 0:07:47]} 14. Nh2 {[%emt 0:03:48]} O-O-O {[%emt 0:06:11]} 15. Ng4 {[%emt 0:02:40]} Qa5 {[%emt 0:06:48]} 16. h5 g5 {[%emt 0:01:20] [#]} 17. Qf3 $146 {[%emt 0:16:30]} ({Predecessor:} 17. Qe3 Nce7 18. f4 Nf5 19. Qf2 gxf4 20. Qxf4 Rg7 21. Bf3 Qb6 22. Kf2 Re8 23. Raa1 {½-½ (35) Firat,B (2248)-Komarov,D (2530) Ankara 2009}) 17... Rf8 {[%emt 0:04:06]} 18. a4 {[%emt 0:02:25]} f5 {[%emt 0:04:22]} 19. exf6 {[%emt 0:00:37]} Nxf6 {[%emt 0:01:03]} 20. O-O {[%emt 0:04:52]} (20. Nxf6 Rhf7 $15) 20... Nxd4 {[%emt 0:03:56]} 21. cxd4 $16 {[%emt 0:00:23]} Qxd2 {[%emt 0:00:09] [#]} 22. Qa3 $1 {[%emt 0:01:03]} ({Weaker is} 22. Nxf6 Rhf7 23. Qa3 (23. Rd1 Qa5 $17) 23... Rxf6 $15) 22... Rhh8 {[%emt 0:10:39][%mdl 8192] This move loses the game for Black.} (22... Rff7 $16 23. c3 Qf4) 23. c3 $18 {[%emt 0:01:04]} Qf4 {[%emt 0:00:12] [#]} 24. Ne5 {[%emt 0:00:07]} Ne4 {[%emt 0:05:27]} (24... Rd8 $142 25. g3 Qf5) 25. Bf3 {[%emt 0:02:46] White is clearly winning.} Rd8 {[%emt 0:13:33]} 26. Bxe4 {[%emt 0:01:42] Hoping for Qc5+.} Qxe4 {[%emt 0:00:13]} 27. Rb2 {[%emt 0:02:49]} Rh7 {[%emt 0:02:53]} 28. Qc5+ {[%emt 0:05:20]} ({Less strong is} 28. Qb4 Be8 $16) 28... Kb8 {[%emt 0:01:48]} 29. Qd6+ {[%emt 0:00:55]} Kc8 {[%emt 0:00:38]} 30. Rfb1 {[%emt 0:01:03]} Bxa4 {[%emt 0:03:17]} 31. Qc5+ {[%emt 0:00:17]} Kb8 {[%emt 0:04:47]} 32. Qa5 {[%emt 0:00:17][%csl LRa4,LRd8] Weighted Error Value: White=0.08 (flawless) /Black=0.57} 1-0

[Event "German Bundesliga 2021-22"]
[Site "Germany"]
[Date "2022.04.09"]
[Round "3.11"]
[White "Neiksans, Arturs"]
[Black "Gajewski, Grzegorz"]
[Result "1/2-1/2"]
[ECO "B51"]
[WhiteElo "2577"]
[BlackElo "2589"]
[Annotator "RC"]
[PlyCount "68"]
[EventDate "2022.03.05"]
[EventType "team-tourn"]
[EventCountry "GER"]
[SourceTitle "playchess.com"]
[Source "ChessBase"]
[SourceQuality "1"]
[TimeControl "40/5400+30:1800+30"]

1. e4 {[%emt 0:00:00]} c5 {[%emt 0:00:00]} 2. Nf3 {[%emt 0:00:00]} d6 {[%emt 0:00:00]} 3. Bb5+ {[%emt 0:00:00]} Nd7 {[%emt 0:00:00]} 4. Ba4 {[%emt 0:00:00]} Ngf6 {[%emt 0:00:00]} 5. O-O {[%emt 0:00:00]} e6 {[%emt 0:00:00]} 6. Re1 {[%emt 0:00:00]} a6 {[%emt 0:00:00]} 7. c3 {[%emt 0:00:00]} b5 {[%emt 0:00:00]} 8. Bc2 {[%emt 0:00:00]} Bb7 {[%emt 0:00:00]} 9. d4 {[%emt 0:00:00]} Be7 {[%emt 0:00:00]} 10. Nbd2 {[%emt 0:00:00]} Qc7 {[%emt 0:00:00]} 11. Nf1 {[%emt 0:00:00]} O-O {[%emt 0:02:05]} 12. Ng3 {[%emt 0:00:00]} Rfe8 {[%emt 0:01:57]} 13. Qe2 {[%emt 0:14:41]} a5 {[%emt 0:08:38]} 14. a4 {[%emt 0:18:51]} cxd4 {[%emt 0:03:18]} 15. cxd4 {[%emt 0:03:40]} Rec8 {[%emt 0:01:07]} 16. Bd3 {[%emt 0:00:45]} bxa4 {[%emt 0:00:06]} 17. Rxa4 {[%emt 0:14:17]} d5 {[%emt 0:07:30]} 18. e5 {[%emt 0:03:29]} Ne4 {[%emt 0:01:25]} 19. Bf4 {[%emt 0:03:32]} Bb4 {[%emt 0:02:22]} 20. Rf1 {[%emt 0:05:27]} f5 {[%emt 0:07:36]} 21. Raa1 {[%emt 0:03:27]} Nf8 {[%emt 0:04:54]} 22. Rfc1 {[%emt 0:02:19]} Qb6 {[%emt 0:00:14]} 23. Be3 {[%emt 0:05:58]} Rxc1+ {[%emt 0:04:56]} 24. Rxc1 {[%emt 0:00:33]} a4 {[%emt 0:00:04]} 25. Qd1 {[%emt 0:05:37]} a3 {[%emt 0:03:56]} 26. bxa3 {[%emt 0:00:32]} Rxa3 {[%emt 0:01:06]} 27. Ra1 {[%emt 0:01:53]} Ba6 {[%emt 0:10:57]} 28. Rxa3 {[%emt 0:01:55]} Bxa3 {[%emt 0:00:03]} 29. Ne2 {[%emt 0:01:49]} Bc4 {[%emt 0:02:53]} 30. h4 {[%emt 0:03:25]} Qb5 {[%emt 0:13:40]} 31. Nf4 {[%emt 0:01:36]} Ng6 {[%emt 0:00:39]} 32. Nxg6 {[%emt 0:02:51]} hxg6 {[%emt 0:02:10]} 33. Bxe4 {[%emt 0:00:43]} dxe4 {[%emt 0:00:45]} 34. Ng5 {[%emt 0:00:07]} Qb3 {[%emt 0:03:07]} 1/2-1/2